fUSD/lending_fUSD_20240907
["ID","MTS","AMOUNT","RATE_DAILY","PERIOD"]
[337441415,1725671080277,150.0,0.00010959,2]
[337441416,1725671080298,85.84,0.00010959,2]
[337441417,1725671090136,150.0,0.0001157,2]
[337441418,1725671090159,448.47,0.0001157,2]
[337441420,1725671145970,551.53,0.00011,2]
[337441421,1725671145994,150.0,0.00011,2]
[337441422,1725671146016,48.47,0.00011,2]
[337441433,1725671317395,2000.0,0.00025,60]
[337441455,1725671376534,5767.5023015,0.00027,120]
[337441459,1725671432582,-250.0,0.00013315,2]
[337441460,1725671432593,-250.0,0.0001333,2]
[337441461,1725671432602,-231.21407502,0.00013344,2]
[337441462,1725671432659,-522.56592498,0.00013344,2]
[337441463,1725671432670,-238.07,0.00013349,2]
[337441464,1725671432681,-3.52341362,0.00013359,2]
[337441477,1725671438606,-1496.47658638,0.00013359,2]
[337441478,1725671438615,-173.06,0.00013436,2]
[337441479,1725671438625,-1024.55,0.0001346,2]
[337441480,1725671438634,-292.6,0.0001347,2]
[337441481,1725671438643,-500.0,0.00013482,2]
[337441482,1725671438652,-374.42,0.00013482,2]
[337441483,1725671438662,-250.0,0.00013493,2]
[337441484,1725671438672,-162.52,0.0001354,2]
[337441485,1725671438681,-499.99,0.0001354,2]
[337441486,1725671438691,-155.23,0.00013661,30]
[337441487,1725671438700,-165.13,0.00013699,2]
[337441488,1725671438709,-157.27,0.00013699,2]
[337441489,1725671438718,-200.0,0.00013699,2]
[337441490,1725671438728,-175.69,0.00013699,2]
[337441491,1725671438737,-163.34,0.00013707,2]
[337441492,1725671438747,-707.4,0.00013729,2]
[337441493,1725671438756,-577.3,0.00013795,2]
[337441494,1725671438765,-150.0,0.00013795,2]
[337441495,1725671438774,-509.397,0.00013795,2]
[337441496,1725671438785,-598.47,0.00013834,2]
[337441497,1725671438795,-1545.0,0.00013938,2]
[337441498,1725671438804,-387.632,0.00013938,2]
[337441500,1725671438813,-933.804,0.00013938,2]
[337441501,1725671438823,-427.16,0.00013978,2]
[337441502,1725671438831,-1475.76,0.00014046,2]
[337441503,1725671438840,-1656.41152646,0.0001465,2]
[337441504,1725671438849,-858.02256,0.0001465,2]
[337441505,1725671438859,-3149.0254,0.00014684,2]
[337441506,1725671438868,-3568.64794171,0.00014684,2]
[337441507,1725671438878,-176.20591623,0.00014694,2]
[337441508,1725671438887,-156.41721627,0.00014694,2]
[337441509,1725671438896,-160.66766435,0.00014694,2]
[337441510,1725671438905,-151.20243424,0.00014694,2]
[337441511,1725671438914,-327.75858517,0.00014694,2]
[337441512,1725671438924,-150.0,0.000147,2]
[337441513,1725671438933,-3568.6479417,0.00014708,2]
[337441514,1725671438942,-174.198,0.00014717,2]
[337441515,1725671438951,-1500.0,0.00014719,2]
[337441516,1725671438960,-3568.6479417,0.00014732,2]
[337441517,1725671438969,-6480.63079377,0.00014746,2]
[337441518,1725671438978,-3568.6479417,0.00014756,2]
[337441519,1725671438987,-500.0,0.00014773,2]
[337441520,1725671438996,-500.0,0.00014773,2]
[337441521,1725671439005,-1500.0,0.00014773,2]
[337441523,1725671439014,-5950.57,0.00014774,2]
[337441525,1725671439023,-5950.57,0.00014774,2]
[337441527,1725671439033,-3568.6479417,0.0001478,2]
[337441529,1725671439042,-207717.512739,0.00014784,2]
[337441531,1725671439051,-21199.2466606,0.00014784,2]
[337441532,1725671439060,-150.26905869,0.00014784,2]
[337441534,1725671439070,-150.26905869,0.00014784,2]
[337441536,1725671439079,-151.7,0.00014784,2]
[337441538,1725671439089,-5950.57,0.00014784,2]
[337441540,1725671439099,-5950.57,0.00014784,2]
[337441542,1725671439108,-5950.57,0.00014784,2]
[337441543,1725671439117,-1836.8632272,0.00014787,2]
[337441544,1725671439126,-1772.2803426,0.00014787,2]
[337441545,1725671439135,-3308.7699411,0.00014787,2]
[337441546,1725671439144,-2605.3735622,0.00014787,2]
[337441547,1725671439155,-382.0,0.00014794,2]
[337441548,1725671439164,-501.78212789,0.00014794,2]
[337441549,1725671439174,-500.0,0.00014794,2]
[337441550,1725671439184,-387.40680456,0.00014794,2]
[337441551,1725671439193,-552.49124315,0.00014794,2]
[337441552,1725671439203,-500.0,0.00014794,2]
[337441553,1725671439212,-500.0,0.00014794,2]
[337441554,1725671439221,-500.0,0.00014794,2]
[337441555,1725671439231,-500.0,0.00014794,2]
[337441556,1725671439240,-500.0,0.00014794,2]
[337441557,1725671439249,-500.0,0.00014794,2]
[337441558,1725671439258,-500.0,0.00014794,2]
[337441559,1725671439267,-242.84785691,0.00014794,2]
[337441560,1725671439276,-500.0,0.00014794,2]
[337441561,1725671439285,-500.0,0.00014794,2]
[337441562,1725671439294,-500.0,0.00014794,2]
[337441563,1725671439304,-500.0,0.00014794,2]
[337441564,1725671439313,-500.0,0.00014794,2]
[337441566,1725671439322,-500.0,0.00014794,2]
[337441567,1725671439331,-500.0,0.00014794,2]
[337441569,1725671439340,-500.0,0.00014794,2]
[337441570,1725671439349,-500.0,0.00014794,2]
[337441571,1725671439358,-500.0,0.00014794,2]
[337441572,1725671439367,-500.0,0.00014794,2]
[337441573,1725671439376,-425.44502379,0.00014794,2]
[337441574,1725671439385,-2000.0,0.00014794,2]
[337441575,1725671439394,-500.0,0.00014794,2]
[337441576,1725671439403,-500.0,0.00014794,2]
[337441577,1725671439412,-200.0,0.00014794,2]
[337441578,1725671439422,-355.23272837,0.00014794,2]
[337441579,1725671439440,-500.0,0.00014794,2]
[337441580,1725671439449,-500.0,0.00014794,2]
[337441581,1725671439458,-500.0,0.00014794,2]
[337441582,1725671439468,-345.91748425,0.00014794,2]
[337441583,1725671439477,-509.05487144,0.00014794,2]
[337441584,1725671439486,-500.0,0.00014794,2]
[337441585,1725671439495,-500.0,0.00014794,2]
[337441586,1725671439504,-500.0,0.00014794,2]
[337441587,1725671439513,-500.0,0.00014794,2]
[337441588,1725671439523,-500.0,0.00014794,2]
[337441589,1725671439532,-500.0,0.00014794,2]
[337441590,1725671439541,-500.0,0.00014794,2]
[337441591,1725671439550,-500.0,0.00014794,2]
[337441592,1725671439559,-500.0,0.00014794,2]
[337441593,1725671439567,-500.0,0.00014794,2]
[337441594,1725671439576,-500.0,0.00014794,2]
[337441595,1725671439587,-500.0,0.00014794,2]
[337441596,1725671439597,-500.0,0.00014794,2]
[337441597,1725671439606,-500.0,0.00014794,2]
[337441598,1725671439617,-500.0,0.00014794,2]
[337441599,1725671439627,-500.0,0.00014794,2]
[337441600,1725671439637,-500.0,0.00014794,2]
[337441601,1725671439646,-500.0,0.00014794,2]
[337441602,1725671439655,-500.0,0.00014794,2]
[337441603,1725671439665,-500.0,0.00014794,2]
[337441604,1725671439679,-360.71641567,0.00014794,2]
[337441605,1725671439688,-500.0,0.00014794,2]
[337441606,1725671439697,-532.57927254,0.00014794,2]
[337441607,1725671439706,-500.0,0.00014794,2]
[337441608,1725671439716,-500.0,0.00014794,2]
[337441609,1725671439725,-500.0,0.00014794,2]
[337441610,1725671439735,-500.0,0.00014794,2]
[337441611,1725671439747,-500.0,0.00014794,2]
[337441612,1725671439757,-500.0,0.00014794,2]
[337441613,1725671439768,-500.0,0.00014794,2]
[337441614,1725671439778,-500.0,0.00014794,2]
[337441615,1725671439787,-500.0,0.00014794,2]
[337441616,1725671439797,-500.0,0.00014794,2]
[337441617,1725671439807,-500.0,0.00014794,2]
[337441618,1725671439816,-500.0,0.00014794,2]
[337441619,1725671439825,-500.0,0.00014794,2]
[337441620,1725671439835,-500.0,0.00014794,2]
[337441621,1725671439844,-500.0,0.00014794,2]
[337441622,1725671439854,-500.0,0.00014794,2]
[337441623,1725671439864,-500.0,0.00014794,2]
[337441624,1725671439874,-500.0,0.00014794,2]
[337441625,1725671439885,-500.0,0.00014794,2]
[337441626,1725671439894,-500.0,0.00014794,2]
[337441627,1725671439903,-561.5,0.00014794,2]
[337441628,1725671439912,-500.0,0.00014794,2]
[337441629,1725671439923,-500.0,0.00014794,2]
[337441630,1725671439933,-596.67239228,0.00014794,2]
[337441631,1725671439945,-500.0,0.00014794,2]
[337441632,1725671439955,-500.0,0.00014794,2]
[337441633,1725671439964,-500.0,0.00014794,2]
[337441634,1725671439973,-500.0,0.00014794,2]
[337441635,1725671439983,-500.0,0.00014794,2]
[337441636,1725671439993,-500.0,0.00014794,2]
[337441637,1725671440002,-500.0,0.00014794,2]
[337441638,1725671440011,-500.0,0.00014794,2]
[337441639,1725671440022,-500.0,0.00014794,2]
[337441640,1725671440033,-500.0,0.00014794,2]
[337441641,1725671440043,-500.0,0.00014794,2]
[337441642,1725671440053,-500.0,0.00014794,2]
[337441643,1725671440063,-500.0,0.00014794,2]
[337441644,1725671440072,-500.0,0.00014794,2]
[337441645,1725671440081,-500.0,0.00014794,2]
[337441646,1725671440091,-500.0,0.00014794,2]
[337441647,1725671440100,-500.0,0.00014794,2]
[337441648,1725671440109,-500.0,0.00014794,2]
[337441649,1725671440119,-500.0,0.00014794,2]
[337441650,1725671440128,-500.0,0.00014794,2]
[337441651,1725671440137,-500.0,0.00014794,2]
[337441652,1725671440147,-500.0,0.00014794,2]
[337441653,1725671440157,-500.0,0.00014794,2]
[337441654,1725671440167,-500.0,0.00014794,2]
[337441655,1725671440177,-500.0,0.00014794,2]
[337441656,1725671440187,-500.0,0.00014794,2]
[337441657,1725671440197,-500.0,0.00014794,2]
[337441658,1725671440207,-500.0,0.00014794,2]
[337441659,1725671440216,-500.0,0.00014794,2]
[337441660,1725671440226,-500.0,0.00014794,2]
[337441661,1725671440236,-456.40415188,0.00014794,2]
[337441662,1725671440247,-500.0,0.00014794,2]
[337441663,1725671440256,-500.0,0.00014794,2]
[337441664,1725671440267,-500.0,0.00014794,2]
[337441665,1725671440277,-500.0,0.00014794,2]
[337441666,1725671440286,-500.0,0.00014794,2]
[337441667,1725671440296,-500.0,0.00014794,2]
[337441668,1725671440305,-500.0,0.00014794,2]
[337441669,1725671440314,-500.0,0.00014794,2]
[337441670,1725671440324,-500.0,0.00014794,2]
[337441671,1725671440333,-500.0,0.00014794,2]
[337441672,1725671440341,-500.0,0.00014794,2]
[337441673,1725671440351,-500.0,0.00014794,2]
[337441674,1725671440360,-500.0,0.00014794,2]
[337441675,1725671440369,-500.0,0.00014794,2]
[337441676,1725671440378,-501.02,0.00014794,2]
[337441677,1725671440387,-500.0,0.00014794,2]
[337441678,1725671440396,-500.0,0.00014794,2]
[337441679,1725671440405,-500.0,0.00014794,2]
[337441680,1725671440414,-500.0,0.00014794,2]
[337441681,1725671440424,-568.93460657,0.00014794,2]
[337441682,1725671440433,-500.0,0.00014794,2]
[337441683,1725671440442,-328.79528327,0.00014794,2]
[337441684,1725671440451,-500.0,0.00014794,2]
[337441685,1725671440460,-500.0,0.00014794,2]
[337441686,1725671440470,-500.0,0.00014794,2]
[337441687,1725671440479,-500.0,0.00014794,2]
[337441688,1725671440488,-500.0,0.00014794,2]
[337441689,1725671440497,-500.0,0.00014794,2]
[337441690,1725671440506,-500.0,0.00014794,2]
[337441691,1725671440515,-500.0,0.00014794,2]
[337441692,1725671440524,-500.0,0.00014794,2]
[337441693,1725671440533,-500.0,0.00014794,2]
[337441694,1725671440543,-500.0,0.00014794,2]
[337441695,1725671440551,-500.0,0.00014794,2]
[337441696,1725671440561,-500.0,0.00014794,2]
[337441697,1725671440570,-361.18,0.00014794,2]
[337441698,1725671440579,-500.0,0.00014794,2]
[337441699,1725671440592,-500.0,0.00014794,2]
[337441700,1725671440601,-500.0,0.00014794,2]
[337441701,1725671440610,-500.0,0.00014794,2]
[337441702,1725671440620,-195.593896,0.00014794,2]
[337441703,1725671440630,-500.0,0.00014794,2]
[337441704,1725671440642,-500.0,0.00014794,2]
[337441705,1725671440651,-224.58,0.00014794,2]
[337441706,1725671440661,-500.0,0.00014794,2]
[337441707,1725671440672,-500.0,0.00014794,2]
[337441708,1725671440682,-500.0,0.00014794,2]
[337441709,1725671440693,-500.0,0.00014794,2]
[337441710,1725671440703,-300.0,0.00014794,2]
[337441711,1725671440714,-300.0,0.00014794,2]
[337441712,1725671440724,-300.0,0.00014794,2]
[337441713,1725671440735,-402.23316088,0.00014794,2]
[337441714,1725671440745,-500.0,0.00014794,2]
[337441715,1725671440754,-500.0,0.00014794,2]
[337441716,1725671440764,-642.01919723,0.00014794,2]
[337441717,1725671440774,-560.47,0.00014794,2]
[337441718,1725671440783,-500.0,0.00014794,2]
[337441719,1725671440792,-500.0,0.00014794,2]
[337441720,1725671440801,-500.0,0.00014794,2]
[337441721,1725671440810,-500.0,0.00014794,2]
[337441722,1725671440820,-362.25,0.00014794,2]
[337441723,1725671440829,-500.0,0.00014794,2]
[337441724,1725671440839,-500.0,0.00014794,2]
[337441725,1725671440849,-500.0,0.00014794,2]
[337441726,1725671441051,-500.0,0.00014794,2]
[337441727,1725671441061,-500.0,0.00014794,2]
[337441728,1725671441070,-500.0,0.00014794,2]
[337441729,1725671441079,-635.77,0.00014794,2]
[337441730,1725671441089,-500.0,0.00014794,2]
[337441731,1725671441099,-500.0,0.00014794,2]
[337441732,1725671441109,-296.33,0.00014794,2]
[337441733,1725671441119,-500.0,0.00014794,2]
[337441734,1725671441128,-500.0,0.00014794,2]
[337441735,1725671441138,-500.0,0.00014794,2]
[337441736,1725671441148,-500.0,0.00014794,2]
[337441737,1725671441159,-500.0,0.00014794,2]
[337441738,1725671441169,-500.0,0.00014794,2]
[337441739,1725671441179,-500.0,0.00014794,2]
[337441740,1725671441188,-532.82,0.00014794,2]
[337441741,1725671441199,-500.0,0.00014794,2]
[337441742,1725671441208,-500.0,0.00014794,2]
[337441743,1725671441217,-500.0,0.00014794,2]
[337441744,1725671441227,-500.0,0.00014794,2]
[337441745,1725671441237,-500.0,0.00014794,2]
[337441746,1725671441246,-500.0,0.00014794,2]
[337441747,1725671441256,-500.0,0.00014794,2]
[337441748,1725671441266,-296.22,0.00014794,2]
[337441749,1725671441276,-500.0,0.00014794,2]
[337441750,1725671441286,-500.0,0.00014794,2]
[337441751,1725671441296,-500.0,0.00014794,2]
[337441752,1725671441307,-209.33,0.00014794,2]
[337441753,1725671441316,-500.0,0.00014794,2]
[337441754,1725671441326,-500.0,0.00014794,2]
[337441755,1725671441335,-500.0,0.00014794,2]
[337441756,1725671441345,-324.74,0.00014794,2]
[337441757,1725671441354,-500.0,0.00014794,2]
[337441758,1725671441363,-500.0,0.00014794,2]
[337441759,1725671441373,-500.0,0.00014794,2]
[337441760,1725671441383,-500.0,0.00014794,2]
[337441761,1725671441392,-500.0,0.00014794,2]
[337441762,1725671441402,-500.0,0.00014794,2]
[337441763,1725671441411,-500.0,0.00014794,2]
[337441764,1725671441421,-500.0,0.00014794,2]
[337441765,1725671441430,-500.0,0.00014794,2]
[337441766,1725671441439,-153.46,0.00014794,2]
[337441767,1725671441448,-500.0,0.00014794,2]
[337441768,1725671441458,-500.0,0.00014794,2]
[337441769,1725671441466,-500.0,0.00014794,2]
[337441770,1725671441476,-500.0,0.00014794,2]
[337441771,1725671441485,-500.0,0.00014794,2]
[337441772,1725671441494,-500.0,0.00014794,2]
[337441773,1725671441504,-364.85630531,0.00014794,2]
[337441774,1725671442317,-76.97369469,0.00014794,2]
[337441775,1725671442326,-500.0,0.00014794,2]
[337441776,1725671442335,-492.0,0.00014794,2]
[337441777,1725671442344,-500.0,0.00014794,2]
[337441778,1725671442354,-112.72630531,0.00014794,2]
[337441787,1725671443444,-448.63999999,0.00013482,2]
[337441789,1725671587566,150.0,0.00012006,2]
[337441790,1725671587590,150.0,0.00012006,2]
[337441791,1725671587614,150.0,0.00012006,2]
[337441792,1725671587644,88.62,0.00012006,2]
[337441793,1725671723204,500.0,0.00031423,30]
[337441794,1725671729413,500.0,0.00031423,30]
[337441798,1725671738217,500.0,0.00031423,30]
[337441799,1725671745060,500.0,0.00031423,30]
[337441800,1725671752962,500.0,0.00031423,30]
[337441801,1725671759633,500.0,0.00031423,30]
[337441802,1725671766111,500.0,0.00031423,30]
[337441803,1725671775429,500.0,0.00031423,30]
[337441804,1725671785862,500.0,0.00031423,30]
[337441805,1725671792847,500.0,0.00031423,30]
[337441806,1725671801345,500.0,0.00031423,30]
[337441807,1725671806828,500.0,0.00031423,30]
[337441808,1725671814044,500.0,0.00031423,30]
[337441809,1725671824790,500.0,0.00031423,30]
[337441849,1725672100130,150.0,0.00011773,2]
[337441850,1725672100151,150.0,0.00011773,2]
[337441851,1725672100172,150.0,0.00011773,2]
[337441852,1725672100193,69.19,0.00011773,2]
[337441855,1725672205984,200.0,0.00024,120]
[337441856,1725672235254,500.0,0.00031433,30]
[337441858,1725672250056,500.0,0.00031433,30]
[337441860,1725672336627,150.0,9.5e-05,2]
[337441861,1725672336648,150.0,9.5e-05,2]
[337441862,1725672336669,150.0,9.5e-05,2]
[337441863,1725672336688,150.0,9.5e-05,2]
[337441864,1725672336708,150.0,9.5e-05,2]
[337441865,1725672336728,150.0,9.5e-05,2]
[337441866,1725672336748,150.0,9.5e-05,2]
[337441867,1725672336768,150.0,9.5e-05,2]
[337441868,1725672336788,150.0,9.5e-05,2]
[337441869,1725672336809,137.09948978,9.5e-05,2]
[337441871,1725672354723,150.0,6.94e-05,2]
[337441872,1725672354746,150.0,6.94e-05,2]
[337441873,1725672354769,150.0,6.94e-05,2]
[337441874,1725672354792,150.0,6.94e-05,2]
[337441875,1725672354814,150.0,6.94e-05,2]
[337441876,1725672354836,289.10687017,6.94e-05,2]
[337441877,1725672354858,150.0,6.94e-05,2]
[337441878,1725672354882,150.0,6.94e-05,2]
[337441879,1725672354905,150.0,6.94e-05,2]
[337441880,1725672354928,150.0,6.94e-05,2]
[337441881,1725672354949,150.0,6.94e-05,2]
[337441882,1725672354976,160.89312983,6.94e-05,2]
[337441883,1725672431479,-209.980565,0.000123,2]
[337441937,1725672620823,368.17988416,0.00031439,120]
[337441948,1725672631941,-250.0,0.00013451,2]
[337441949,1725672631951,-163.34,0.00013459,2]
[337441950,1725672631965,-7.476,0.00013486,2]
[337441951,1725672631977,-242.524,0.00013486,2]
[337441952,1725672631986,-633.0,0.00013515,2]
[337441953,1725672631996,-376.89,0.00013516,2]
[337441954,1725672632006,-765.92,0.0001355,2]
[337441955,1725672632016,-250.0,0.00013556,2]
[337441956,1725672632027,-155.23,0.00013681,30]
[337441957,1725672632037,-157.27,0.00013699,2]
[337441958,1725672632047,-500.0,0.00013743,2]
[337441959,1725672632056,-499.99,0.00013743,2]
[337441960,1725672632065,-234.08,0.00013774,2]
[337441961,1725672632074,-165.13,0.0001379,2]
[337441962,1725672632083,-293.3,0.0001379,2]
[337441963,1725672632092,-8603.21299994,0.0001379,2]
[337441964,1725672635021,-2132.62621162,0.0001379,2]
[337441969,1725672637576,-2354.97886678,0.0001379,2]
[337441970,1725672637587,-165.49,0.00013798,2]
[337441971,1725672637597,-519.19,0.00014037,2]
[337441972,1725672637607,-150.831,0.00014118,2]
[337441974,1725672637616,-5671.39087439,0.0001448,2]
[337441976,1725672637625,-692.93336135,0.00014594,2]
[337441978,1725672637636,-195.98667788,0.00014594,2]
[337441979,1725672637646,-168.5021934,0.0001465,2]
[337441980,1725672637978,-491.77976376,0.0001465,2]
[337441981,1725672637989,-54.73684284,0.0001465,2]
[337441982,1725672637999,-151.20243424,0.00014687,2]
[337441983,1725672638008,-160.66766435,0.00014694,2]
[337441984,1725672638017,-588.66363735,0.00014694,2]
[337441985,1725672638137,-1195.6603335,0.00014694,2]
[337441986,1725672638147,-223.28008026,0.00014694,2]
[337441987,1725672638156,-1784.32397085,0.00014717,2]
[337441988,1725672638166,-1784.32397085,0.0001474,2]
[337441989,1725672638175,-1784.32397085,0.00014763,2]
[337441990,1725672638185,-174.19848898,0.00014782,2]
[337441991,1725672638194,-3393.88918471,0.00014784,2]
[337441999,1725672639958,-31962.28319679,0.00014784,2]
[337442000,1725672639968,-1784.32397085,0.00014786,2]
[337442001,1725672639978,-3163.3151902,0.00014787,2]
[337442002,1725672639987,-1639.2552753,0.00014787,2]
[337442003,1725672639998,-3980.5687016,0.00014787,2]
[337442004,1725672640008,-151.0,0.00014794,2]
[337442005,1725672640017,-152.573346,0.00014794,2]
[337442006,1725672640026,-151.0,0.00014794,2]
[337442007,1725672640037,-152.043095,0.00014794,2]
[337442008,1725672640048,-500.0,0.00014794,2]
[337442009,1725672640057,-500.0,0.00014794,2]
[337442010,1725672640067,-500.0,0.00014794,2]
[337442011,1725672640076,-500.0,0.00014794,2]
[337442012,1725672640085,-500.0,0.00014794,2]
[337442013,1725672640095,-500.0,0.00014794,2]
[337442014,1725672640104,-151.0,0.00014794,2]
[337442015,1725672640115,-151.0,0.00014794,2]
[337442016,1725672640123,-151.0,0.00014794,2]
[337442017,1725672640133,-151.0,0.00014794,2]
[337442018,1725672640143,-512.89059033,0.00014794,2]
[337442019,1725672640152,-151.0,0.00014794,2]
[337442020,1725672640161,-151.0,0.00014794,2]
[337442021,1725672640171,-151.0,0.00014794,2]
[337442022,1725672640180,-500.0,0.00014794,2]
[337442023,1725672640189,-151.0,0.00014794,2]
[337442024,1725672640199,-500.0,0.00014794,2]
[337442026,1725672640208,-283.84619964,0.00014794,2]
[337442027,1725672640218,-500.0,0.00014794,2]
[337442028,1725672640227,-500.0,0.00014794,2]
[337442029,1725672640237,-500.0,0.00014794,2]
[337442030,1725672640246,-258.57348303,0.00014794,2]
[337442031,1725672640256,-151.0,0.00014794,2]
[337442032,1725672640266,-151.0,0.00014794,2]
[337442033,1725672640275,-500.0,0.00014794,2]
[337442034,1725672640286,-500.0,0.00014794,2]
[337442035,1725672640295,-500.0,0.00014794,2]
[337442036,1725672640306,-500.0,0.00014794,2]
[337442037,1725672640315,-500.0,0.00014794,2]
[337442038,1725672640325,-500.0,0.00014794,2]
[337442039,1725672640335,-151.0,0.00014794,2]
[337442040,1725672640345,-151.0,0.00014794,2]
[337442041,1725672640355,-151.0,0.00014794,2]
[337442042,1725672640367,-151.0,0.00014794,2]
[337442043,1725672640377,-500.0,0.00014794,2]
[337442044,1725672640387,-502.00166111,0.00014794,2]
[337442045,1725672640396,-500.0,0.00014794,2]
[337442046,1725672640406,-500.0,0.00014794,2]
[337442047,1725672640415,-331.08142749,0.00014794,2]
[337442048,1725672640425,-281.83422922,0.00014794,2]
[337442049,1725672640436,-501.38858072,0.00014794,2]
[337442050,1725672640446,-501.6571266,0.00014794,2]
[337442051,1725672640455,-500.0,0.00014794,2]
[337442052,1725672640466,-216.40568754,0.00014794,2]
[337442053,1725672640475,-501.83058716,0.00014794,2]
[337442054,1725672640486,-500.0,0.00014794,2]
[337442055,1725672640496,-606.1313566,0.00014794,2]
[337442056,1725672640506,-501.55560324,0.00014794,2]
[337442057,1725672640515,-151.0,0.00014794,2]
[337442058,1725672640525,-151.0,0.00014794,2]
[337442059,1725672640535,-151.0,0.00014794,2]
[337442060,1725672640544,-151.0,0.00014794,2]
[337442061,1725672640554,-500.0,0.00014794,2]
[337442062,1725672640563,-500.0,0.00014794,2]
[337442063,1725672640572,-500.0,0.00014794,2]
[337442064,1725672640582,-500.0,0.00014794,2]
[337442065,1725672640591,-381.0495461,0.00014794,2]
[337442066,1725672640601,-500.0,0.00014794,2]
[337442067,1725672640613,-500.0,0.00014794,2]
[337442068,1725672640623,-500.0,0.00014794,2]
[337442069,1725672640633,-500.0,0.00014794,2]
[337442070,1725672640642,-500.0,0.00014794,2]
[337442071,1725672640652,-500.0,0.00014794,2]
[337442072,1725672640662,-500.0,0.00014794,2]
[337442073,1725672640672,-500.0,0.00014794,2]
[337442074,1725672640682,-500.0,0.00014794,2]
[337442075,1725672640692,-500.0,0.00014794,2]
[337442076,1725672640702,-500.0,0.00014794,2]
[337442077,1725672640711,-500.0,0.00014794,2]
[337442078,1725672640722,-500.0,0.00014794,2]
[337442079,1725672640731,-500.0,0.00014794,2]
[337442080,1725672640740,-500.0,0.00014794,2]
[337442081,1725672640750,-500.0,0.00014794,2]
[337442082,1725672640759,-185.36,0.00014794,2]
[337442083,1725672640768,-500.0,0.00014794,2]
[337442084,1725672640778,-500.0,0.00014794,2]
[337442085,1725672640787,-500.0,0.00014794,2]
[337442086,1725672640796,-500.0,0.00014794,2]
[337442087,1725672640805,-500.0,0.00014794,2]
[337442088,1725672640815,-271.83723305,0.00014794,2]
[337442089,1725672640824,-647.11,0.00014794,2]
[337442090,1725672640834,-647.11,0.00014794,2]
[337442091,1725672640843,-647.11,0.00014794,2]
[337442092,1725672640852,-647.11,0.00014794,2]
[337442093,1725672640865,-647.11,0.00014794,2]
[337442094,1725672640874,-647.11,0.00014794,2]
[337442095,1725672640884,-647.11,0.00014794,2]
[337442096,1725672640894,-647.11,0.00014794,2]
[337442097,1725672640903,-500.0,0.00014794,2]
[337442098,1725672640913,-500.0,0.00014794,2]
[337442099,1725672640922,-500.0,0.00014794,2]
[337442100,1725672640931,-500.0,0.00014794,2]
[337442101,1725672640940,-500.0,0.00014794,2]
[337442102,1725672640950,-647.11,0.00014794,2]
[337442103,1725672640961,-500.0,0.00014794,2]
[337442104,1725672640972,-500.0,0.00014794,2]
[337442105,1725672640981,-151.0,0.00014794,2]
[337442106,1725672640991,-500.0,0.00014794,2]
[337442107,1725672641000,-500.0,0.00014794,2]
[337442108,1725672641010,-500.0,0.00014794,2]